bitfinex/quotes_ETHUSD_20240618
["timestamp","ask_amount","ask_price","bid_price","bid_amount"]
[1718672265962,2.87903,3473.4,3472.3,2.93752047]
[1718672266298,2.87886,3473.6,3472.5,2.87976]
[1718672266442,3.0,3473.5,3472.5,2.87976]
[1718672266859,5.87894,3473.5,3472.5,2.87976]
[1718672267063,5.87894,3473.5,3472.4,2.87985]
[1718672268891,5.87894,3473.5,3472.5,0.05758875]
[1718672269062,5.87894,3473.5,3472.5,1.48449689]
[1718672270491,2.87902,3473.4,3472.5,1.48449689]
[1718672270645,2.8791,3473.3,3472.3,2.87993]
[1718672271051,2.8791,3473.3,3472.2,8.4516426]
[1718672271052,2.87947,3472.9,3472.2,6.8698]
[1718672271356,2.87954,3472.8,3472.0,0.150526]
[1718672271822,2.87936,3473.0,3472.0,0.2081226]
[1718672271945,2.87936,3473.0,3472.0,0.81696086]
[1718672272353,2.87924,3473.2,3472.0,0.81696086]
[1718672272354,5.87895,3473.5,3472.2,2.88]
[1718672272545,5.87895,3473.5,3472.3,0.05759259]
[1718672272992,1.85553876,3473.8,3472.3,2.93751259]
[1718672273285,3.0,3473.8,3472.7,9.68492]
[1718672273746,5.8787,3473.8,3472.7,9.68492]
[1718672274494,7.236125,3473.8,3472.7,10.128619]
[1718672275093,5.8787,3473.8,3472.7,10.128619]
[1718672275386,1.357425,3473.7,3472.7,10.128619]
[1718672275568,4.357425,3473.7,3472.7,10.128619]
[1718672276355,1.357425,3473.6,3472.7,10.128619]
[1718672276555,1.357425,3473.6,3472.7,7.249099]
[1718672277292,4.23629043,3473.6,3472.6,2.87968]
[1718672277586,1.35744043,3473.5,3472.6,2.87968]
[1718672278087,2.87903,3473.4,3472.2,7.2845]
[1718672278254,2.87911,3473.3,3472.2,7.2845]
[1718672278455,2.87911,3473.3,3472.3,1.09240443]
[1718672278654,2.87903,3473.4,3472.3,1.09240443]
[1718672278889,2.87885,3473.6,3472.4,2.93744027]
[1718672279251,1.35720805,3473.5,3472.4,2.93744027]
[1718672279498,1.35720805,3473.4,3472.4,2.93744027]
[1718672279652,1.35720805,3473.4,3472.5,1.41942747]
[1718672280055,4.23615805,3473.5,3472.5,1.41942747]
[1718672280248,1.35723665,3473.5,3472.5,1.41942747]
[1718672280993,1.35723665,3473.5,3472.5,4.29918747]
[1718672281569,4.23618665,3473.5,3472.5,1.41942747]
[1718672281887,1.35723665,3473.4,3472.4,2.87984]
[1718672282290,1.35723665,3473.4,3472.5,2.87975]
[1718672282504,1.35723665,3473.5,3472.7,2.87959]
[1718672282792,1.35723665,3473.6,3472.8,2.87951]
[1718672283008,1.35723665,3473.6,3472.8,3.455429]
[1718672283171,5.87862,3473.9,3472.9,0.05758509]
[1718672283172,1.35723665,3473.7,3472.9,0.05758509]
[1718672283489,1.35723665,3473.8,3473.1,2.87926]
[1718672283862,1.35723665,3473.9,3472.9,2.87942]
[1718672284053,1.35723665,3473.8,3472.9,2.87942]
[1718672284378,1.35723665,3473.8,3472.9,3.5129059]
[1718672285089,2.87887,3473.6,3472.5,2.87976]
[1718672285295,4.23610665,3473.6,3472.5,2.87976]
[1718672287193,1.35723665,3473.7,3473.0,2.87929]
[1718672288295,1.35723665,3473.8,3473.3,2.87907]
[1718672288484,1.35723665,3473.9,3473.3,2.87907]
[1718672289194,1.35723665,3474.0,3473.3,2.87907]
[1718672289890,1.35723665,3473.9,3473.1,5.75846]
[1718672290070,1.35723665,3473.9,3473.2,0.05757767]
[1718672290271,1.35723665,3474.0,3473.2,2.93675767]
[1718672290907,1.35723665,3474.3,3473.5,2.87893]
[1718672291061,1.35723665,3474.4,3473.6,0.05756887]
[1718672291260,1.35723665,3474.6,3473.7,2.87876]
[1718672292168,2.09114212,3474.5,3473.6,3.89041077]
[1718672292371,1.35723665,3474.6,3473.7,0.05756887]
[1718672292708,4.35723665,3474.7,3473.7,0.05756887]
[1718672292875,2.09114166,3474.6,3473.7,0.74026583]
[1718672293209,2.09114166,3474.6,3473.7,0.68269696]
[1718672293413,4.96917166,3474.6,3473.7,0.68269696]
[1718672293710,2.09126347,3474.5,3473.6,3.89041077]
[1718672294079,2.09126347,3474.5,3473.3,10.0582]
[1718672294284,2.87828,3474.3,3473.3,10.0582]
[1718672294527,2.87868,3473.9,3473.0,0.59453298]
[1718672294690,3.0,3474.2,3472.9,0.05758276]
[1718672295012,2.87852,3474.0,3472.8,7.4064]
[1718672295169,2.87877,3473.7,3472.8,7.4064]
[1718672296004,2.87887,3473.6,3472.8,7.4064]
[1718672296391,2.87887,3473.6,3472.5,2.87976]
[1718672296592,2.87887,3473.6,3472.5,4.2602723]
[1718672296808,2.87877,3473.8,3472.5,1.3805123]
[1718672296982,2.87879,3473.7,3472.7,2.8796]
[1718672297327,2.87879,3473.7,3472.5,1.3805123]
[1718672297918,2.87885,3473.6,3472.6,2.87967]
[1718672298279,4.23592665,3473.9,3472.6,2.87967]
[1718672298280,2.87878,3473.7,3472.6,2.87967]
[1718672299217,2.87889,3473.6,3472.5,4.2602723]
[1718672299430,2.87889,3473.6,3472.3,10.33075]
[1718672299611,2.8791,3473.4,3472.3,10.33075]
[1718672300513,2.8791,3473.4,3472.4,2.87984]
[1718672300675,3.0,3473.5,3472.5,0.05758599]
[1718672300882,1.3573589,3474.0,3472.9,2.8794]
[1718672301094,2.87844,3474.2,3473.0,0.28794]
[1718672301095,3.0,3474.1,3473.0,0.28794]
[1718672301491,5.87845,3474.1,3473.0,0.28794]
[1718672301691,5.87845,3474.1,3473.0,3.16728]
[1718672301995,7.2358089,3474.1,3473.0,3.16728]
[1718672302396,2.87861,3473.9,3472.9,2.87943]
[1718672302574,7.2358089,3474.1,3472.5,2.87976]
[1718672302575,2.87872,3473.8,3472.5,2.87976]
[1718672302918,2.87885,3473.6,3472.6,2.87968]
[1718672303480,2.87872,3473.8,3472.6,2.87968]
[1718672303810,2.87872,3473.8,3472.8,2.87951]
[1718672304200,1.35755785,3474.0,3472.9,2.93701596]
[1718672304519,1.35755785,3474.0,3473.2,2.87916]
[1718672304725,2.93948,3474.7,3473.3,0.05757371]
[1718672304726,1.35755785,3474.4,3473.3,0.05757371]
[1718672305028,4.35755785,3474.6,3473.3,0.05757371]
[1718672305522,4.35755785,3474.6,3473.7,2.87877]
[1718672305732,1.35787182,3474.6,3473.7,2.87877]
[1718672306099,1.35787182,3474.7,3473.7,2.87877]
[1718672306417,1.35787182,3474.8,3473.8,0.05757169]
[1718672306619,1.35787182,3474.8,3473.8,2.93625169]
[1718672306819,1.35787182,3475.1,3474.3,2.87826]
[1718672307115,1.35787182,3475.2,3474.3,2.87826]
[1718672307415,1.35787182,3475.3,3474.3,2.87826]
[1718672307609,4.23532182,3475.3,3474.1,2.87844]
[1718672307773,4.23532182,3475.3,3474.1,4.433764]
[1718672307774,1.35787182,3475.2,3474.1,4.433764]
[1718672307978,4.23540182,3475.2,3474.1,4.433764]
[1718672308178,3.0,3475.1,3474.1,4.433764]
[1718672308817,4.35787182,3475.1,3474.1,1.555324]
[1718672309022,2.87787,3474.8,3473.5,2.87893]
[1718672309178,2.87796,3474.7,3473.6,2.87883]
[1718672309388,2.87802,3474.7,3473.3,7.3688]
[1718672309576,2.87811,3474.6,3473.3,10.24788]
[1718672309778,2.87836,3474.2,3473.3,7.3688]
[1718672310205,2.87844,3474.1,3473.3,7.3688]
[1718672310514,2.87836,3474.2,3472.9,2.87942]
[1718672310720,0.55,3474.1,3472.8,0.575919]
[1718672311116,3.55,3474.1,3472.8,3.455429]
[1718672311419,2.8786,3474.0,3472.9,4.2498049]
[1718672312589,2.8786,3474.0,3472.9,1.3703749]
[1718672312919,2.8786,3474.0,3472.8,3.455429]
[1718672313120,2.87871,3473.8,3472.6,7.3688]
[1718672313498,2.87889,3473.6,3472.6,10.24848]
[1718672313693,2.87877,3473.7,3472.6,10.24848]
[1718672313912,4.23642218,3474.0,3472.7,2.93710763]
[1718672314080,3.0,3473.9,3472.8,1.03059076]
[1718672315212,3.0,3473.9,3472.9,2.87942]
[1718672315408,3.0,3473.9,3472.9,2.93700392]
[1718672315647,3.0,3474.0,3473.1,2.87926]
[1718672315825,3.0,3474.1,3473.1,2.87926]
[1718672315995,5.87845,3474.1,3473.1,2.87926]
[1718672316198,5.87845,3474.1,3473.0,2.87935]
[1718672316806,2.87857,3474.0,3472.8,1.03059076]
[1718672316996,2.87857,3474.0,3472.7,2.87952]
[1718672317329,6.42868,3473.9,3472.6,7.3688]
[1718672317647,1.35782218,3473.8,3472.6,7.3688]
[1718672318107,2.87886,3473.6,3472.6,7.3688]
[1718672319202,4.23652218,3473.8,3472.6,10.24847]
[1718672319443,5.87878,3473.7,3472.6,11.849274]
[1718672321199,0.49806993,3474.1,3472.7,0.05758866]
[1718672321200,2.87854,3474.0,3472.7,0.05758866]
[1718672321507,2.87854,3474.0,3472.9,2.87941]
[1718672321737,3.0,3473.9,3472.9,2.87941]
[1718672321960,2.87854,3474.0,3472.9,4.3522714]
[1718672322160,3.0,3474.1,3473.3,2.87908]
[1718672322464,3.0,3474.2,3473.3,2.87908]
[1718672323477,8.89334949,3475.0,3473.5,10.30644]
[1718672323478,1.35782218,3474.6,3473.5,10.30644]
[1718672323765,3.0,3474.6,3473.7,2.87876]
[1718672324263,3.0,3474.6,3473.6,2.87885]
[1718672324467,3.0,3474.6,3473.6,4.2549622]
[1718672325171,3.0,3474.6,3473.7,2.87875]
[1718672325471,3.0,3474.6,3473.9,2.87859]
[1718672325668,7.73357545,3475.0,3473.9,2.87859]
[1718672325852,2.87778,3474.9,3473.9,2.87859]
[1718672326637,2.87778,3474.9,3473.9,3.59193522]
[1718672326835,2.87778,3474.9,3473.8,2.87869]
[1718672332482,5.8777,3475.0,3473.9,0.0575673]
[1718672332783,1.85557199,3475.4,3474.5,2.87804]
[1718672332982,3.0,3475.5,3474.6,9.84315]
[1718672333181,4.23480182,3475.7,3474.6,9.84315]
[1718672333182,3.0,3475.6,3474.6,11.115269]
[1718672334187,2.87713,3475.7,3474.7,2.87792]
[1718672335182,2.87703,3475.9,3474.8,2.87786]
[1718672335385,0.55,3475.8,3474.8,2.87786]
[1718672335886,3.55,3475.8,3474.8,2.87786]
[1718672336394,2.87685,3476.1,3474.8,1.3993199]
[1718672336552,3.55,3476.0,3475.0,2.87765]
[1718672337551,3.0,3476.0,3475.1,2.87757]
[1718672337794,5.03,3476.1,3474.6,6.9652]
[1718672337977,5.87712,3475.7,3474.6,9.84322]
[1718672338300,2.87729,3475.5,3474.6,6.9652]
[1718672340293,3.4272,3475.6,3474.6,6.9652]
[1718672340657,2.87728,3475.5,3474.6,6.9652]
[1718672341281,0.55,3475.4,3474.2,2.87835]
[1718672341696,2.87745,3475.3,3474.2,2.87835]
[1718672342269,2.87745,3475.3,3474.3,2.87827]
[1718672342467,4.9073,3475.5,3474.3,0.996917]
[1718672342468,2.03,3475.5,3474.3,0.996917]
[1718672342682,3.0,3475.4,3474.4,0.057561]
[1718672342878,3.0,3475.9,3474.4,0.057561]
[1718672343079,0.55,3475.8,3474.4,0.057561]
[1718672344201,2.87717,3475.7,3474.6,2.87802]
[1718672344405,3.55,3475.6,3474.6,2.87802]
[1718672344876,6.4272,3475.6,3474.6,2.87802]
[1718672345260,2.87762,3475.1,3474.1,7.0909]
[1718672346264,4.9073,3475.5,3473.2,10.20408]
[1718672346265,2.03,3474.6,3473.2,10.20408]
[1718672346465,2.87786,3474.8,3473.3,0.05757411]
[1718672346665,3.0,3474.7,3473.4,2.87901]
[1718672346863,2.87803,3474.6,3473.5,2.87893]
[1718672347474,2.87809,3474.6,3473.2,11.527708]
[1718672347676,3.55,3474.5,3473.2,11.527708]
[1718672347970,3.55,3474.5,3473.3,1.4407058]
[1718672348265,3.0,3474.5,3473.3,4.3198058]
[1718672348485,5.87812,3474.5,3473.3,4.3197258]
[1718672348686,5.87812,3474.5,3473.4,2.87898]
[1718672348897,3.0,3474.5,3473.3,1.4407058]
[1718672349079,0.55,3474.4,3473.3,1.4407058]
[1718672349281,2.87836,3474.2,3473.3,1.4407058]
[1718672350001,2.87847,3474.1,3473.2,7.3249]
[1718672351374,2.87828,3474.3,3473.2,7.3249]
[1718672352105,4.35779607,3474.6,3473.7,2.8787]
[1718672352412,3.0,3474.9,3473.5,2.87885]
[1718672352413,5.87794,3474.7,3473.5,2.87885]
[1718672352584,5.87794,3474.7,3473.6,0.575784]
[1718672352782,2.8783,3474.3,3473.2,10.20404]
[1718672352989,2.8783,3474.3,3473.2,10.204]
[1718672353190,2.87838,3474.2,3473.2,7.3249]
[1718672353398,2.87846,3474.1,3473.2,7.3249]
[1718672353579,0.55,3474.2,3473.2,7.3249]
[1718672353783,2.87844,3474.1,3473.2,7.3249]
[1718672354393,5.87815,3474.5,3473.4,2.87898]
[1718672354593,3.0,3474.4,3473.4,2.87898]
[1718672354810,5.8782,3474.4,3473.4,2.87898]
[1718672354988,3.0,3474.4,3473.5,2.87891]
[1718672355320,3.0,3474.4,3473.6,0.05757416]
[1718672355517,0.49799225,3474.7,3473.6,0.05757416]
[1718672355720,4.35806091,3474.9,3473.6,0.05757416]
[1718672355919,1.35806091,3474.8,3473.6,0.05757416]
[1718672356294,4.35806091,3474.9,3473.6,0.05757416]
[1718672356517,4.85605316,3474.9,3473.5,4.318037]
[1718672356795,1.35806091,3474.8,3473.5,2.87891]
[1718672357203,2.03,3474.7,3473.3,2.87902]
[1718672357387,5.03,3474.7,3473.4,0.05757301]
[1718672357588,3.0,3474.7,3473.4,0.05757301]
[1718672357924,3.0,3474.7,3473.5,2.8789]
[1718672357925,2.87803,3474.6,3473.5,2.8789]
[1718672358124,3.0,3474.5,3473.5,2.8789]
[1718672358350,2.87803,3474.6,3473.5,2.8789]
[1718672358643,2.87803,3474.6,3473.6,0.719713]
[1718672359420,5.79769,3475.0,3473.6,0.7772859]
[1718672359625,5.79769,3475.0,3474.0,6.7557]
[1718672360138,2.92,3475.0,3474.1,0.05756681]
[1718672360337,2.92,3475.0,3474.1,2.93599681]
[1718672360655,2.87745,3475.3,3474.2,1.25702968]
[1718672360812,2.87745,3475.3,3474.2,4.13537968]
[1718672361012,2.87745,3475.3,3474.2,1.25702968]
[1718672361322,2.87761,3475.1,3474.1,2.87843]
[1718672361905,2.87761,3475.1,3474.0,6.7557]
[1718672361906,2.87791,3474.8,3474.0,6.7557]
[1718672362338,2.87778,3474.9,3474.0,6.7557]
[1718672364274,2.87761,3475.1,3474.0,6.7557]
[1718672364435,0.55,3475.0,3474.1,1.251291]
[1718672364635,8.96536091,3475.5,3474.3,2.87827]
[1718672364636,7.23536091,3475.5,3474.3,2.87827]
[1718672364839,3.0,3475.4,3474.4,2.87818]
[1718672365070,4.23525091,3475.7,3474.5,0.05755951]
[1718672365071,3.0,3475.6,3474.5,0.05755951]
[1718672365247,3.0,3475.6,3474.6,2.87802]
[1718672365657,3.0,3475.6,3474.6,3.165822]
[1718672366598,2.03,3475.8,3474.8,2.87785]
[1718672366899,1.35806091,3476.5,3475.4,2.8773]
[1718672367125,2.09032094,3476.4,3475.5,3.45276]
[1718672367402,4.23435091,3476.7,3475.6,2.8772]
[1718672367763,2.87638,3476.6,3475.6,2.8772]
[1718672367959,2.87638,3476.6,3475.4,2.87729]
[1718672368300,5.03,3476.7,3475.1,6.8983]
[1718672368477,2.03,3476.3,3475.1,6.8983]
[1718672368673,2.03,3476.3,3475.3,2.87737]
[1718672369484,5.45638,3476.6,3475.4,2.87736]
[1718672369701,5.87645,3476.5,3475.4,2.87736]
[1718672370568,2.87653,3476.4,3475.4,2.87736]
[1718672371299,2.87653,3476.4,3475.4,1.265326]
[1718672373002,2.87622,3476.8,3475.7,2.87709]
[1718672373195,5.87603,3477.1,3475.8,0.05753822]
[1718672373402,5.87603,3477.1,3475.9,7.2065]
[1718672373403,2.87604,3477.0,3475.9,7.2065]
[1718672374212,2.92,3477.2,3476.3,2.87656]
[1718672374408,3.0,3477.8,3475.9,7.2065]
[1718672374409,2.87548,3477.7,3476.6,2.87637]
[1718672374719,0.1178051,3478.0,3476.7,7.2065]
[1718672375111,2.87538,3477.8,3476.7,7.2065]
[1718672376015,2.87538,3477.8,3476.7,10.08278]
[1718672376218,2.03,3477.6,3476.3,2.87654]
[1718672376807,2.87577,3477.4,3476.4,2.87653]
[1718672377010,2.03,3477.6,3476.7,2.87626]
[1718672377211,3.0,3477.7,3476.4,1.584835]
[1718672377512,5.87531,3477.9,3476.8,2.87617]
[1718672378042,5.87531,3477.9,3476.6,2.87632]
[1718672378228,5.87531,3477.9,3476.2,10.09518]
[1718672378229,2.03,3477.6,3476.2,10.09518]
[1718672378461,4.90561,3477.6,3476.3,2.87659]
[1718672378660,2.87572,3477.4,3476.3,4.461451]
[1718672378867,2.87572,3477.4,3476.4,2.87653]
[1718672379449,2.87582,3477.3,3476.3,1.584861]
[1718672379663,2.87596,3477.1,3476.2,7.2185]
[1718672380537,2.87612,3477.0,3476.2,7.2185]
[1718672380741,2.87621,3476.8,3476.2,7.2185]
[1718672381437,2.87604,3477.0,3476.2,7.2185]
[1718672381657,2.87621,3476.8,3476.2,7.2185]
[1718672381856,2.87621,3476.8,3475.7,6.8892]
[1718672382141,2.8764,3476.6,3475.7,6.8892]
[1718672382448,2.87629,3476.7,3475.7,9.76631]
[1718672383745,2.87629,3476.7,3475.7,6.8892]
[1718672384801,2.87654,3476.4,3475.7,6.8892]
[1718672385273,2.8764,3476.6,3475.7,6.8892]
[1718672385274,2.87664,3476.3,3475.7,6.8892]
[1718672385777,2.87664,3476.3,3475.2,10.33753]
[1718672385939,2.87664,3476.3,3475.2,12.24682]
[1718672386499,2.87654,3476.4,3475.3,2.87743]
[1718672387353,2.87675,3476.2,3475.2,7.46]
[1718672387671,2.87662,3476.3,3475.2,10.33752]
[1718672388088,2.87673,3476.2,3475.2,10.33752]
[1718672388944,2.87652,3476.5,3475.3,2.87744]
[1718672389146,0.55,3476.4,3475.3,2.87744]
[1718672389850,2.8767,3476.2,3475.2,7.46]
[1718672390062,5.45654,3476.4,3475.2,7.46]
[1718672390358,2.03,3476.0,3474.7,9.83311]
[1718672390708,2.03,3476.0,3474.7,8.226309]
[1718672391003,0.55,3475.9,3474.7,8.226309]
[1718672391148,3.0,3476.3,3475.3,2.87743]
[1718672391494,2.87662,3476.3,3475.2,2.87753]
[1718672391650,3.0,3476.2,3475.3,2.87744]
[1718672392361,0.55,3476.1,3474.8,7.259]
[1718672392656,2.8769,3476.0,3475.0,2.87769]
[1718672393070,3.0,3476.2,3475.2,2.87752]
[1718672393492,5.87671,3476.2,3475.0,2.87769]
[1718672393792,5.87671,3476.2,3475.0,2.87761]
[1718672394094,5.87671,3476.2,3475.1,2.87758]
[1718672395282,5.87671,3476.2,3475.2,2.87752]
[1718672395482,3.0,3476.2,3475.2,2.87752]
[1718672395799,3.0,3476.2,3475.1,3.60302981]
[1718672395985,3.0,3476.2,3475.2,2.87751]
[1718672396183,1.35945895,3476.3,3475.3,0.05754239]
[1718672396497,1.35945895,3476.6,3475.4,6.9447]
[1718672396663,2.03,3476.8,3475.4,6.9447]
[1718672396664,2.87681,3476.1,3475.4,6.9447]
[1718672396866,2.87674,3476.2,3475.4,6.9447]
[1718672397379,2.87703,3475.8,3474.9,7.1284]
[1718672397590,2.87695,3475.9,3474.9,7.1284]
[1718672398768,2.87695,3475.9,3474.9,8.4510489]
[1718672398970,2.87695,3475.9,3474.9,11.3288189]
[1718672399693,2.87705,3475.8,3474.9,8.4510489]
[1718672400382,2.87733,3475.5,3474.9,7.09298]
[1718672400566,2.87733,3475.5,3474.0,2.8785]
[1718672400567,2.03,3475.7,3473.8,2.87864]
[1718672400766,2.87761,3475.1,3473.9,2.8786]
[1718672400990,2.87779,3474.9,3473.8,2.87868]
[1718672401201,2.87778,3474.9,3473.9,2.8786]
[1718672401407,3.38945895,3475.3,3473.9,2.8786]
[1718672401408,2.8777,3475.0,3473.9,2.8786]
[1718672401606,2.8777,3475.0,3473.7,2.87874]
[1718672401607,2.8778,3474.9,3473.7,2.87874]
[1718672401767,2.87754,3475.2,3473.5,2.87887]
[1718672401768,2.87803,3474.6,3473.5,2.87887]
[1718672401965,2.87803,3474.6,3473.6,2.87883]
[1718672402188,2.87803,3474.6,3473.6,3.4546]
[1718672402403,2.87802,3474.7,3473.6,0.57577]
[1718672402704,1.35699851,3475.8,3474.8,2.87778]
[1718672402875,1.35699851,3475.8,3475.2,2.87752]
[1718672403077,1.85481635,3476.4,3475.4,2.87736]
[1718672403307,1.35699851,3476.6,3475.7,2.87711]
[1718672403550,1.35699851,3476.8,3475.8,2.93455515]
[1718672403705,2.87596,3477.1,3476.0,2.8768]
[1718672403912,2.03,3477.1,3475.6,10.13508]
[1718672404090,4.90596,3477.1,3476.1,2.87678]
[1718672404598,4.90596,3477.1,3476.0,2.87686]
[1718672404796,2.87607,3477.0,3475.8,2.877]
[1718672405028,2.87007,3477.0,3475.9,2.87694]
[1718672405191,1.35740409,3477.3,3475.9,2.93445081]
[1718672405390,1.35740409,3477.3,3476.5,7.2077]
[1718672405627,2.87547,3477.7,3476.6,0.05752426]
[1718672405833,1.35742186,3477.7,3475.9,0.42089914]
[1718672406033,4.23272186,3477.9,3476.3,2.35760522]
[1718672406201,2.93290434,3477.8,3476.7,2.08675007]
[1718672406408,2.93290434,3477.8,3476.5,2.70033814]
[1718672406641,2.93290434,3477.8,3476.8,2.8762]
[1718672406796,2.93290434,3477.8,3476.9,0.05751642]
[1718672406797,0.05752434,3477.8,3476.9,0.05751642]
[1718672407002,0.07189545,3477.9,3477.0,2.87603]
[1718672407217,0.1178051,3478.0,3477.0,2.87603]
[1718672407218,3.07189436,3477.8,3477.0,2.87603]
[1718672407441,3.0,3477.8,3477.1,2.93346541]
[1718672407600,0.1178051,3478.0,3477.1,0.05751541]
[1718672407941,0.07189027,3477.9,3476.9,0.05751221]
[1718672408138,0.18969102,3478.0,3477.1,2.87595]
[1718672408311,0.91888513,3478.0,3477.1,2.87595]
[1718672408500,0.1178051,3478.0,3477.2,0.05751105]
[1718672408820,0.1178051,3478.0,3477.6,2.87549]
[1718672409324,0.1178051,3478.0,3477.0,7.1035]
[1718672409633,2.87551,3477.7,3477.0,7.1035]
[1718672409835,2.87568,3477.5,3476.4,9.98001]
[1718672410137,3.24237886,3477.4,3476.4,7.1035]
[1718672410343,7.61815886,3477.4,3475.7,6.8955]
[1718672410550,2.87627,3476.8,3475.7,6.8955]
[1718672410845,2.87666,3476.3,3475.2,6.8955]
[1718672411144,2.87706,3475.8,3475.2,6.8955]
[1718672411456,0.07193329,3475.7,3474.9,2.87774]
[1718672411626,2.87643,3476.6,3475.4,2.87735]
[1718672411808,3.0,3476.9,3475.5,10.33603842]
[1718672412151,3.0,3477.2,3476.0,2.87679]
[1718672412305,0.91401008,3477.1,3475.7,2.87709]
[1718672412644,3.0,3477.4,3476.1,2.87678]
[1718672412827,0.0719033,3477.3,3476.1,2.87678]
[1718672413031,2.87598,3477.1,3476.1,2.87678]
[1718672413346,2.87557,3477.6,3476.3,10.19976]
[1718672413583,3.0,3477.5,3476.5,2.87644]
[1718672413720,1.35750818,3477.8,3476.5,2.87644]
[1718672413721,0.37190327,3477.4,3476.5,2.87644]
[1718672414044,0.37190327,3477.4,3476.6,2.8763]
[1718672414243,0.07189892,3477.7,3476.8,2.87617]
[1718672414455,0.07189622,3477.8,3476.9,2.93362698]
[1718672414748,0.07188854,3477.9,3477.1,2.87591]
[1718672414936,0.07188854,3477.9,3477.2,2.87585]
[1718672415250,0.1178051,3478.0,3477.3,2.87578]
[1718672415546,0.1178051,3478.0,3477.5,2.87561]
[1718672415868,0.1178051,3478.0,3477.4,2.87569]
[1718672416010,0.1178051,3478.0,3477.2,6.9328]
[1718672416207,0.1178051,3478.0,3477.1,2.87591]
[1718672416408,0.1178051,3478.0,3477.3,2.87578]
[1718672416638,0.1178051,3478.0,3477.5,2.87558]
[1718672416952,0.1178051,3478.0,3477.4,2.87569]
[1718672417238,0.07188257,3477.9,3476.9,7.2065]
[1718672417442,0.07188257,3477.9,3476.7,2.87628]
[1718672417634,2.87549,3477.7,3476.5,2.8764]
[1718672417833,0.36663617,3477.6,3476.6,2.87636]
[1718672418042,0.1178051,3478.0,3476.7,2.93379913]
[1718672418207,0.1178051,3478.0,3477.3,2.87578]
[1718672418412,0.07188753,3477.9,3476.6,2.87636]
[1718672418607,2.94723753,3477.9,3476.8,2.87617]
[1718672418844,0.1178051,3478.0,3477.3,2.87576]
[1718672419145,0.07188753,3477.9,3477.1,2.87594]
[1718672419351,0.07188753,3477.9,3476.8,2.87617]
[1718672419523,0.07188753,3477.9,3476.8,3.451425]
[1718672419906,0.1178051,3478.0,3477.3,2.87578]
[1718672420441,0.1178051,3478.0,3477.4,0.05750772]
[1718672421012,0.1178051,3478.0,3477.4,7.04240772]
[1718672421519,0.1178051,3478.0,3477.8,2.87536]
[1718672421721,0.1178051,3478.0,3477.9,0.05749983]
[1718672422314,0.1178051,3478.0,3477.9,0.86836498]
[1718672422936,0.1178051,3478.0,3477.8,2.87536]
[1718672423132,0.1178051,3478.0,3477.5,2.87562]
[1718672423341,0.1178051,3478.0,3477.8,8.7837]
[1718672423533,0.1178051,3478.0,3477.8,11.65908]
[1718672423956,5.57585,3479.7,3477.4,9.86055]
[1718672423957,4.025061,3479.9,3478.7,2.87462]
[1718672424143,0.59734233,3479.8,3478.8,2.93202288]
[1718672424343,0.59734233,3479.8,3479.0,2.87437]
[1718672424551,0.07185358,3479.8,3479.0,2.87437]
[1718672425251,1.151361,3479.9,3479.0,2.87437]
[1718672425252,1.151361,3479.9,3479.0,3.033]
[1718672425455,1.151361,3479.9,3479.7,2.87373]
[1718672426925,1.151361,3479.9,3478.7,7.2892]
[1718672427143,2.8739,3479.6,3478.7,7.2892]
[1718672427466,0.07185512,3479.5,3478.8,2.9320241]
[1718672427765,0.07185,3479.8,3478.9,2.8744]
[1718672427940,0.07185,3479.8,3479.0,2.9318505]
[1718672428129,1.151361,3479.9,3479.2,2.87417]
[1718672428328,1.151361,3479.9,3479.2,2.87422]
[1718672428557,1.151361,3479.9,3479.6,2.77387]
[1718672429839,0.0718388,3479.8,3478.7,13.16379]
[1718672430043,1.151361,3479.9,3479.3,2.87406]
[1718672430250,1.151361,3479.9,3479.7,2.87375]
[1718672431569,1.151361,3479.9,3479.8,7.3722]
[1718672431769,1.151361,3479.9,3479.8,12.36532024]
[1718672431946,1.151361,3479.9,3479.8,12.307855]
[1718672432328,1.151361,3479.9,3479.8,15.307855]
[1718672433271,0.1178051,3481.5,3480.8,2.87289]
[1718672433577,0.1178051,3481.5,3480.9,2.93018936]
[1718672433780,0.1178051,3481.5,3481.2,2.87253]
[1718672434007,0.1178051,3481.5,3481.3,2.92992165]
[1718672434135,0.1178051,3481.5,3481.3,5.74495]
[1718672434331,0.1178051,3481.5,3481.0,2.87273]
[1718672434577,2.9901851,3481.5,3479.8,1.902655]
[1718672434762,2.87266,3481.1,3479.9,2.87364]
[1718672434947,0.07182573,3481.0,3479.9,2.87364]
[1718672435267,0.1178051,3481.5,3480.0,0.05746059]
[1718672435471,0.1178051,3481.5,3480.3,2.87331]
[1718672435472,2.87249,3481.3,3480.3,2.87331]
[1718672435645,2.87266,3481.1,3480.0,2.87355]
[1718672435972,0.07182326,3481.0,3480.0,2.87355]
[1718672436280,0.07182326,3481.0,3480.1,2.87347]
[1718672436792,0.07182326,3481.0,3479.9,2.87363]
[1718672437371,0.07182326,3481.0,3480.0,2.87354]
[1718672437537,0.07182326,3481.0,3480.1,2.87346]
[1718672437739,2.87308,3480.6,3479.5,2.87397]
[1718672437933,2.87326,3480.4,3479.4,2.87404]
[1718672438189,0.0718367,3480.3,3479.4,2.87404]
[1718672438808,0.55,3480.8,3479.6,2.87388]
[1718672438968,0.35189983,3480.9,3479.8,5.90664]
[1718672439173,2.9901451,3481.5,3480.0,2.87356]
[1718672439387,2.9901451,3481.5,3480.6,2.87304]
[1718672439388,0.07182076,3481.4,3480.6,2.87304]
[1718672439777,0.07182076,3481.4,3480.2,2.87332]
[1718672439778,2.94425076,3481.4,3480.2,2.87332]
[1718672439978,2.87291,3480.8,3479.5,5.87395]
[1718672440181,2.87249,3481.3,3479.3,7.4098]